[Event "Titled Tuesday Blitz March 01 Late 2022"]
[White "Yurtseven, Melih"]
[Black "Toncheva, Nadya"]
[WhiteFideId "6312160"]
[BlackFideId "2924056"]
[WhiteElo "2160"]
[BlackElo "1920"]
[Result "0-1"]
[Round "11"]
[TimeControl "180+1"]
[Date "2022.03.02"]
[WhiteClock "0:00:38"]
[BlackClock "0:00:05"]

1. Nf3 {[%clk 0:03:00]}  Nf6 {[%clk 0:02:58]} 2. b3 {[%clk 0:03:01]}  d5 {[%clk 0:02:57]} 3. Bb2 {[%clk 0:03:02]}  Bg4 {[%clk 0:02:57]} 4. e3 {[%clk 0:03:02]}  Nbd7 {[%clk 0:02:57]} 5. c4 {[%clk 0:03:02]}  e5 {[%clk 0:02:55]} 6. h3 {[%clk 0:03:00]}  Bxf3 {[%clk 0:02:55]} 7. Qxf3 {[%clk 0:03:01]}  c6 {[%clk 0:02:56]} 8. Qg3 {[%clk 0:02:57]}  Ne4 {[%clk 0:02:50]} 9. Qg4 {[%clk 0:02:55]}  Nef6 {[%clk 0:02:49]} 10. Qh4 {[%clk 0:02:46]}  Bd6 {[%clk 0:02:31]} 11. cxd5 {[%clk 0:02:42]}  cxd5 {[%clk 0:02:29]} 12. Nc3 {[%clk 0:02:42]}  O-O {[%clk 0:02:28]} 13. Be2 {[%clk 0:02:38]}  Re8 {[%clk 0:02:26]} 14. O-O {[%clk 0:02:36]}  h6 {[%clk 0:02:22]} 15. Rac1 {[%clk 0:02:33]}  a6 {[%clk 0:02:12]} 16. Bd3 {[%clk 0:02:26]}  e4 {[%clk 0:02:04]} 17. Bb1 {[%clk 0:02:25]}  Ne5 {[%clk 0:02:04]} 18. f4 {[%clk 0:02:17]}  exf3 {[%clk 0:01:59]} 19. gxf3 {[%clk 0:02:18]}  Qd7 {[%clk 0:01:52]} 20. f4 {[%clk 0:02:06]}  Ng6 {[%clk 0:01:40]} 21. Qg3 {[%clk 0:02:06]}  d4 {[%clk 0:01:22]} 22. Ne2 {[%clk 0:02:02]}  dxe3 {[%clk 0:01:06]} 23. dxe3 {[%clk 0:02:03]}  Ne4 {[%clk 0:00:57]} 24. Qg2 {[%clk 0:01:27]}  Nd2 {[%clk 0:00:35]} 25. e4 {[%clk 0:01:26]}  Nxf1 {[%clk 0:00:20]} 26. Rxf1 {[%clk 0:01:26]}  Bc5+ {[%clk 0:00:14]} 27. Kh1 {[%clk 0:01:18]}  Qd2 {[%clk 0:00:15]} 28. Bc3 {[%clk 0:01:15]}  Qd6 {[%clk 0:00:11]} 29. e5 {[%clk 0:01:12]}  Qb6 {[%clk 0:00:09]} 30. e6 {[%clk 0:01:03]}  Qxe6 {[%clk 0:00:07]} 31. Ng3 {[%clk 0:00:56]}  Nh4 {[%clk 0:00:06]} 32. Qh2 {[%clk 0:00:56]}  Qc6+ {[%clk 0:00:05]} 33. Ne4 {[%clk 0:00:44]}  Rxe4 {[%clk 0:00:05]} 34. Qg3 {[%clk 0:00:44]}  Re2+ {[%clk 0:00:04]} 35. Rf3 {[%clk 0:00:41]}  Qxf3+ {[%clk 0:00:04]} 36. Qxf3 {[%clk 0:00:41]}  Nxf3 {[%clk 0:00:05]} 37. Bd3 {[%clk 0:00:38]}  Rh2# {[%clk 0:00:05]} 0-1


[Site "https://www.chess.com"]

[Event "Titled Tuesday Blitz March 01 Late 2022"]
[White "Zhou, Qiyu"]
[Black "Cagara, Paulina"]
[WhiteFideId "505161"]
[BlackFideId "1124870"]
[WhiteElo "1925"]
[BlackElo "1828"]
[Result "1-0"]
[Round "11"]
[TimeControl "180+1"]
[Date "2022.03.02"]
[WhiteClock "0:00:59"]
[BlackClock "0:00:32"]

1. e4 {[%clk 0:03:00]}  c6 {[%clk 0:02:58]} 2. d4 {[%clk 0:03:01]}  d5 {[%clk 0:02:58]} 3. e5 {[%clk 0:03:01]}  c5 {[%clk 0:02:57]} 4. dxc5 {[%clk 0:03:01]}  e6 {[%clk 0:02:57]} 5. Be3 {[%clk 0:03:00]}  Nd7 {[%clk 0:02:56]} 6. Bb5 {[%clk 0:02:59]}  Ne7 {[%clk 0:02:45]} 7. Bxd7+ {[%clk 0:02:51]}  Bxd7 {[%clk 0:02:44]} 8. Nf3 {[%clk 0:02:51]}  Qc7 {[%clk 0:02:44]} 9. c3 {[%clk 0:02:46]}  a5 {[%clk 0:02:42]} 10. O-O {[%clk 0:02:45]}  Nc6 {[%clk 0:02:42]} 11. Bd4 {[%clk 0:02:44]}  Be7 {[%clk 0:02:34]} 12. Nbd2 {[%clk 0:02:38]}  Nxd4 {[%clk 0:02:31]} 13. cxd4 {[%clk 0:02:38]}  b6 {[%clk 0:02:31]} 14. Rc1 {[%clk 0:02:34]}  bxc5 {[%clk 0:02:30]} 15. dxc5 {[%clk 0:02:35]}  Bb5 {[%clk 0:02:26]} 16. Re1 {[%clk 0:02:34]}  O-O {[%clk 0:02:15]} 17. Nd4 {[%clk 0:02:29]}  Bd3 {[%clk 0:02:13]} 18. Qf3 {[%clk 0:02:22]}  Bg6 {[%clk 0:02:10]} 19. Nb5 {[%clk 0:02:14]}  Qc6 {[%clk 0:02:06]} 20. Nd6 {[%clk 0:02:10]}  Rab8 {[%clk 0:02:04]} 21. Nb3 {[%clk 0:02:09]}  a4 {[%clk 0:02:03]} 22. Nd4 {[%clk 0:02:10]}  Qa6 {[%clk 0:01:51]} 23. b3 {[%clk 0:02:03]}  Rb4 {[%clk 0:01:46]} 24. Qc3 {[%clk 0:01:55]}  Rfb8 {[%clk 0:01:32]} 25. c6 {[%clk 0:01:49]}  axb3 {[%clk 0:01:29]} 26. c7 {[%clk 0:01:42]}  Bxd6 {[%clk 0:01:06]} 27. exd6 {[%clk 0:01:29]}  Qxd6 {[%clk 0:00:54]} 28. cxb8=Q+ {[%clk 0:01:18]}  Rxb8 {[%clk 0:00:53]} 29. Qc8+ {[%clk 0:01:11]}  Qf8 {[%clk 0:00:52]} 30. Qxf8+ {[%clk 0:01:10]}  Kxf8 {[%clk 0:00:52]} 31. Nxb3 {[%clk 0:01:09]}  Ke7 {[%clk 0:00:46]} 32. Nd4 {[%clk 0:01:04]}  Kf6 {[%clk 0:00:44]} 33. Ra1 {[%clk 0:01:00]}  e5 {[%clk 0:00:43]} 34. Nc6 {[%clk 0:01:00]}  Re8 {[%clk 0:00:35]} 35. a4 {[%clk 0:00:59]}  e4 {[%clk 0:00:32]} 36. a5 {[%clk 0:00:59]} 1-0


[Site "https://www.chess.com"]